[Event "Late-Titled-Tuesday-Blitz-March-26-2024"]
[Site "Chess.com"]
[Date "2024.03.26"]
[Round "7"]
[White "Hikaru"]
[Black "Zkid"]
[Result "1-0"]
[WhiteElo "3279"]
[BlackElo "2926"]
[TimeControl "180+1"]
[EndTime "15:18:27 PDT"]
[Termination "Hikaru won by resignation"]

1. Nf3 {[%clk 0:03:00.9]} 1... Nf6 {[%clk 0:02:59.8]} 2. b3 {[%clk 0:03:01]}
2... g6 {[%clk 0:02:59.7]} 3. d4 {[%clk 0:03:00.6]} 3... Bg7 {[%clk 0:02:59.5]}
4. Bb2 {[%clk 0:03:01.1]} 4... c5 {[%clk 0:03:00.1]} 5. dxc5 {[%clk 0:03:01]}
5... Qa5+ {[%clk 0:03:00]} 6. Nbd2 {[%clk 0:03:01.7]} 6... Qxc5 {[%clk
0:03:00.4]} 7. e3 {[%clk 0:03:02.4]} 7... O-O {[%clk 0:02:58.2]} 8. c4 {[%clk
0:03:03]} 8... d5 {[%clk 0:02:53.4]} 9. a3 {[%clk 0:03:00.7]} 9... dxc4 {[%clk
0:02:53]} 10. b4 {[%clk 0:03:00.2]} 10... Qh5 {[%clk 0:02:49.3]} 11. Bxc4 {[%clk
0:03:00.3]} 11... Nc6 {[%clk 0:02:46.7]} 12. Rc1 {[%clk 0:03:00.1]} 12... Bg4
{[%clk 0:02:45.6]} 13. h3 {[%clk 0:02:57.3]} 13... Rfd8 {[%clk 0:02:44.1]} 14.
Qb3 {[%clk 0:02:55.2]} 14... e6 {[%clk 0:02:26.5]} 15. Be2 {[%clk 0:02:46.1]}
15... Bxf3 {[%clk 0:02:23.8]} 16. Bxf3 {[%clk 0:02:44.5]} 16... Qb5 {[%clk
0:02:21.3]} 17. Rc5 {[%clk 0:02:39.4]} 17... Qd3 {[%clk 0:02:12.5]} 18. Qxd3
{[%clk 0:02:31.5]} 18... Rxd3 {[%clk 0:02:13.4]} 19. Ke2 {[%clk 0:02:31.4]}
19... Rad8 {[%clk 0:02:11.9]} 20. Rc2 {[%clk 0:02:30.3]} 20... R3d7 {[%clk
0:01:37.1]} 21. Bxc6 {[%clk 0:02:24.8]} 21... bxc6 {[%clk 0:01:38]} 22. Rhc1
{[%clk 0:01:55.6]} 22... Nd5 {[%clk 0:01:32]} 23. Bxg7 {[%clk 0:01:36.2]} 23...
Kxg7 {[%clk 0:01:32.9]} 24. Nb3 {[%clk 0:01:36.6]} 24... Ne7 {[%clk 0:01:28.2]}
25. Nc5 {[%clk 0:01:36.9]} 25... Rd5 {[%clk 0:01:25.2]} 26. Nb3 {[%clk
0:01:30.6]} 26... e5 {[%clk 0:01:20.9]} 27. Rc5 {[%clk 0:01:30.3]} 27... R8d7
{[%clk 0:01:18.8]} 28. e4 {[%clk 0:01:27.6]} 28... Rd3 {[%clk 0:01:16.8]} 29.
R1c3 {[%clk 0:01:27.1]} 29... Rxc3 {[%clk 0:01:17]} 30. Rxc3 {[%clk 0:01:27.3]}
30... f5 {[%clk 0:01:12]} 31. f3 {[%clk 0:01:26.2]} 31... Kf6 {[%clk 0:01:08.5]}
32. Rc5 {[%clk 0:01:25.8]} 32... g5 {[%clk 0:01:02.6]} 33. Na5 {[%clk
0:01:19.2]} 33... Rd6 {[%clk 0:00:40.2]} 34. Nc4 {[%clk 0:00:57.9]} 34... Rd4
{[%clk 0:00:39.3]} 35. Ke3 {[%clk 0:00:57.8]} 35... fxe4 {[%clk 0:00:34]} 36.
fxe4 {[%clk 0:00:56.9]} 36... Rd1 {[%clk 0:00:32.4]} 37. Nxe5 {[%clk 0:00:51.8]}
37... Re1+ {[%clk 0:00:21.9]} 38. Kf3 {[%clk 0:00:51.6]} 38... Rf1+ {[%clk
0:00:21.2]} 39. Ke2 {[%clk 0:00:51.7]} 39... Ra1 {[%clk 0:00:20.7]} 40. Ra5
{[%clk 0:00:51.9]} 40... h5 {[%clk 0:00:16.6]} 41. g4 {[%clk 0:00:46.4]} 41...
h4 {[%clk 0:00:15.6]} 42. Nf3 {[%clk 0:00:46.5]} 42... Ng6 {[%clk 0:00:14]} 43.
e5+ {[%clk 0:00:37.2]} 43... Ke7 {[%clk 0:00:12.8]} 44. Nxg5 {[%clk 0:00:36.6]}
44... Nf4+ {[%clk 0:00:07.6]} 45. Kf3 {[%clk 0:00:36.4]} 45... Rf1+ {[%clk
0:00:06.7]} 46. Ke4 {[%clk 0:00:36.6]} 46... Nd5 {[%clk 0:00:06.1]} 47. Rxa7+
{[%clk 0:00:36.8]} 47... Ke8 {[%clk 0:00:06.7]} 48. Rh7 {[%clk 0:00:23.2]} 48...
Re1+ {[%clk 0:00:04.9]} 49. Kf5 {[%clk 0:00:22.2]} 1-0

[Event "Late-Titled-Tuesday-Blitz-March-26-2024"]
[Site "Chess.com"]
[Date "2024.03.26"]
[Round "7"]
[White "akanga001"]
[Black "TheMagician"]
[Result "0-1"]
[WhiteElo "2079"]
[BlackElo "2275"]
[TimeControl "180+1"]
[EndTime "15:18:27 PDT"]
[Termination "TheMagician won by resignation"]

1. d4 {[%clk 0:03:00.9]} 1... Nf6 {[%clk 0:02:59.3]} 2. c4 {[%clk 0:03:00.1]}
2... e6 {[%clk 0:02:58.2]} 3. Nc3 {[%clk 0:02:59.9]} 3... Bb4 {[%clk 0:02:58]}
4. e3 {[%clk 0:03:00.1]} 4... c5 {[%clk 0:02:56.8]} 5. a3 {[%clk 0:02:59.2]}
5... Bxc3+ {[%clk 0:02:56.8]} 6. bxc3 {[%clk 0:03:00.1]} 6... d6 {[%clk
0:02:45.1]} 7. Ne2 {[%clk 0:02:59.9]} 7... Qe7 {[%clk 0:02:40.7]} 8. Ng3 {[%clk
0:02:58.6]} 8... Nc6 {[%clk 0:02:40.4]} 9. Be2 {[%clk 0:02:57.1]} 9... O-O
{[%clk 0:02:39.3]} 10. O-O {[%clk 0:02:55.8]} 10... e5 {[%clk 0:02:35.2]} 11. d5
{[%clk 0:02:51.2]} 11... Na5 {[%clk 0:02:34.8]} 12. e4 {[%clk 0:02:51.5]} 12...
Ne8 {[%clk 0:02:21.6]} 13. f4 {[%clk 0:02:49.7]} 13... f6 {[%clk 0:02:12.8]} 14.
Qa4 {[%clk 0:02:35.7]} 14... b6 {[%clk 0:02:10.5]} 15. Qd1 {[%clk 0:02:32.7]}
15... Ba6 {[%clk 0:02:00.2]} 16. Nf5 {[%clk 0:02:31.5]} 16... Qd7 {[%clk
0:01:57.4]} 17. fxe5 {[%clk 0:02:27.9]} 17... dxe5 {[%clk 0:01:55.4]} 18. Rf3
{[%clk 0:02:12.9]} 18... Nd6 {[%clk 0:01:50.6]} 19. Nxd6 {[%clk 0:01:41]} 19...
Qxd6 {[%clk 0:01:50.4]} 20. Rg3 {[%clk 0:01:41.4]} 20... Bxc4 {[%clk 0:01:46.8]}
21. Bg4 {[%clk 0:01:35]} 21... Rad8 {[%clk 0:01:39.1]} 22. Be6+ {[%clk
0:01:33.9]} 22... Qxe6 {[%clk 0:01:38.7]} 23. Bh6 {[%clk 0:01:19.4]} 23... Qf7
{[%clk 0:01:23.2]} 24. Bxg7 {[%clk 0:01:10.6]} 24... Qxg7 {[%clk 0:01:23.3]} 25.
Qh5 {[%clk 0:00:54.8]} 25... Qxg3 {[%clk 0:01:20]} 26. hxg3 {[%clk 0:00:55.7]}
26... Rf7 {[%clk 0:01:06.2]} 27. Qf5 {[%clk 0:00:54.8]} 27... Nb7 {[%clk
0:01:04.2]} 28. Kf2 {[%clk 0:00:53.4]} 28... Nd6 {[%clk 0:01:04.3]} 29. Qg4+
{[%clk 0:00:52.9]} 29... Kf8 {[%clk 0:00:57.7]} 30. Rh1 {[%clk 0:00:46.4]} 30...
Bd3 {[%clk 0:00:54.8]} 31. Qe6 {[%clk 0:00:36.4]} 31... Bxe4 {[%clk 0:00:49.2]}
32. Rh6 {[%clk 0:00:34]} 32... Bf5 {[%clk 0:00:43.5]} 33. Qxf7+ {[%clk
0:00:20.8]} 33... Kxf7 {[%clk 0:00:39.8]} 34. Rh4 {[%clk 0:00:18.9]} 34... Be4
{[%clk 0:00:37.5]} 35. c4 {[%clk 0:00:17.3]} 35... Rh8 {[%clk 0:00:28.9]} 36.
Ke3 {[%clk 0:00:17]} 36... Bxd5 {[%clk 0:00:25.7]} 37. cxd5 {[%clk 0:00:16]}
37... Nf5+ {[%clk 0:00:25.9]} 38. Ke4 {[%clk 0:00:14.4]} 38... Nxh4 {[%clk
0:00:26]} 39. gxh4 {[%clk 0:00:15.3]} 39... Kg6 {[%clk 0:00:24.8]} 40. g4 {[%clk
0:00:14.6]} 40... Rd8 {[%clk 0:00:23.7]} 41. a4 {[%clk 0:00:13.3]} 41... h5
{[%clk 0:00:23]} 42. gxh5+ {[%clk 0:00:11.9]} 42... Kxh5 {[%clk 0:00:23.2]} 43.
Kf5 {[%clk 0:00:12.8]} 43... Rxd5 {[%clk 0:00:22.5]} 44. Kxf6 {[%clk 0:00:13.7]}
44... Rd4 {[%clk 0:00:22.8]} 45. Kxe5 {[%clk 0:00:13.5]} 45... Rxa4 {[%clk
0:00:22.7]} 46. Kd6 {[%clk 0:00:12.7]} 46... Rxh4 {[%clk 0:00:22.5]} 47. Kc6
{[%clk 0:00:13.6]} 47... c4 {[%clk 0:00:22.7]} 48. Kb7 {[%clk 0:00:14.5]} 48...
c3 {[%clk 0:00:23.1]} 49. Kxa7 {[%clk 0:00:15.2]} 49... c2 {[%clk 0:00:23.6]}
50. Kxb6 {[%clk 0:00:16.1]} 50... c1=Q {[%clk 0:00:24]} 0-1

[Event "Late-Titled-Tuesday-Blitz-March-26-2024"]
[Site "Chess.com"]
[Date "2024.03.26"]
[Round "7"]
[White "RuperezA"]
[Black "Boundless_Strike"]
[Result "0-1"]
[WhiteElo "2457"]
[BlackElo "2627"]
[TimeControl "180+1"]
[EndTime "15:18:30 PDT"]
[Termination "Boundless_Strike won by resignation"]

1. e4 {[%clk 0:02:59.7]} 1... d5 {[%clk 0:02:56.6]} 2. exd5 {[%clk 0:02:56.9]}
2... Qxd5 {[%clk 0:02:57.5]} 3. Qf3 {[%clk 0:02:55.9]} 3... Qa5 {[%clk
0:02:51.9]} 4. Bc4 {[%clk 0:02:52.2]} 4... Nf6 {[%clk 0:02:51.6]} 5. Nc3 {[%clk
0:02:50]} 5... Nc6 {[%clk 0:02:50.6]} 6. Qg3 {[%clk 0:02:06]} 6... Nd4 {[%clk
0:02:31.4]} 7. Kd1 {[%clk 0:01:55.3]} 7... Bf5 {[%clk 0:02:22.2]} 8. d3 {[%clk
0:01:54.8]} 8... O-O-O {[%clk 0:02:22]} 9. Nge2 {[%clk 0:01:54.3]} 9... Nxe2
{[%clk 0:02:00.2]} 10. Kxe2 {[%clk 0:01:51.9]} 10... e6 {[%clk 0:01:45.1]} 11.
Bd2 {[%clk 0:01:45.6]} 11... Bd6 {[%clk 0:01:43.4]} 12. Nb5 {[%clk 0:01:44.5]}
12... Qxd2+ {[%clk 0:01:24.4]} 13. Kxd2 {[%clk 0:01:45.4]} 13... Bxg3 {[%clk
0:01:18]} 14. hxg3 {[%clk 0:01:46.3]} 14... c6 {[%clk 0:00:54.9]} 15. Nc3 {[%clk
0:01:46.1]} 15... b5 {[%clk 0:00:53.7]} 16. Bb3 {[%clk 0:01:46.5]} 16... a5
{[%clk 0:00:54.2]} 17. a4 {[%clk 0:01:45.7]} 17... b4 {[%clk 0:00:54.2]} 18. Ne2
{[%clk 0:01:46.4]} 18... Kc7 {[%clk 0:00:48.8]} 19. f3 {[%clk 0:01:45.7]} 19...
h5 {[%clk 0:00:45.3]} 20. Ke3 {[%clk 0:01:41]} 20... Rd7 {[%clk 0:00:42.1]} 21.
Bc4 {[%clk 0:01:38.9]} 21... e5 {[%clk 0:00:40.1]} 22. g4 {[%clk 0:01:35.9]}
22... Bg6 {[%clk 0:00:35.6]} 23. gxh5 {[%clk 0:01:33.6]} 23... Rxh5 {[%clk
0:00:34.4]} 24. g4 {[%clk 0:01:33]} 24... Rxh1 {[%clk 0:00:32.8]} 25. Rxh1
{[%clk 0:01:33.9]} 25... Nd5+ {[%clk 0:00:31.9]} 26. Bxd5 {[%clk 0:01:27.3]}
26... cxd5 {[%clk 0:00:31.9]} 27. d4 {[%clk 0:01:27.9]} 27... f6 {[%clk
0:00:29.7]} 28. c3 {[%clk 0:01:22.5]} 28... Re7 {[%clk 0:00:27.6]} 29. Kf2
{[%clk 0:01:18.7]} 29... Bd3 {[%clk 0:00:24.9]} 30. Nc1 {[%clk 0:01:12.6]} 30...
Bc4 {[%clk 0:00:23.3]} 31. b3 {[%clk 0:01:10.8]} 31... Ba6 {[%clk 0:00:23.2]}
32. cxb4 {[%clk 0:01:11.2]} 32... axb4 {[%clk 0:00:23.3]} 33. Na2 {[%clk
0:01:12.1]} 33... exd4 {[%clk 0:00:19.5]} 34. Nxb4 {[%clk 0:01:12.4]} 34... Re2+
{[%clk 0:00:18.8]} 35. Kf1 {[%clk 0:01:08.7]} 35... Rb2+ {[%clk 0:00:04.1]} 36.
Nxa6+ {[%clk 0:01:08.3]} 36... Kd6 {[%clk 0:00:04.9]} 37. b4 {[%clk 0:00:49.2]}
37... d3 {[%clk 0:00:05.1]} 38. Rh8 {[%clk 0:00:35.5]} 38... Rb1+ {[%clk
0:00:05.5]} 39. Kf2 {[%clk 0:00:35.6]} 39... d2 {[%clk 0:00:06.2]} 40. Rd8+
{[%clk 0:00:33.1]} 40... Ke5 {[%clk 0:00:06]} 41. Re8+ {[%clk 0:00:26.1]} 41...
Kd4 {[%clk 0:00:06]} 42. Nc7 {[%clk 0:00:19.1]} 42... d1=Q {[%clk 0:00:05.8]}
43. Ne6+ {[%clk 0:00:20]} 43... Kc3 {[%clk 0:00:06.2]} 44. Nf4 {[%clk
0:00:18.8]} 44... Qg1+ {[%clk 0:00:05.9]} 0-1

[Event "Late-Titled-Tuesday-Blitz-March-26-2024"]
[Site "Chess.com"]
[Date "2024.03.26"]
[Round "7"]
[White "Vahe_Danielyan"]
[Black "KetiTsatsalashvili"]
[Result "0-1"]
[WhiteElo "2586"]
[BlackElo "2466"]
[TimeControl "180+1"]
[EndTime "15:18:30 PDT"]
[Termination "KetiTsatsalashvili won on time"]

1. d4 {[%clk 0:02:49.9]} 1... Nf6 {[%clk 0:02:58.2]} 2. c4 {[%clk 0:02:44.2]}
2... e6 {[%clk 0:02:58.4]} 3. Nc3 {[%clk 0:02:41.8]} 3... Bb4 {[%clk 0:02:58]}
4. Nf3 {[%clk 0:02:39.5]} 4... d5 {[%clk 0:02:54.8]} 5. cxd5 {[%clk 0:02:38.4]}
5... exd5 {[%clk 0:02:54.5]} 6. Bg5 {[%clk 0:02:37.9]} 6... h6 {[%clk 0:02:52]}
7. Bh4 {[%clk 0:02:33.4]} 7... c5 {[%clk 0:02:51]} 8. e3 {[%clk 0:02:32.1]} 8...
g5 {[%clk 0:02:49.7]} 9. Bg3 {[%clk 0:02:29.5]} 9... Qa5 {[%clk 0:02:47.7]} 10.
Rc1 {[%clk 0:01:51.4]} 10... Nbd7 {[%clk 0:02:42.5]} 11. Bd3 {[%clk 0:01:45.3]}
11... c4 {[%clk 0:02:42.2]} 12. Bb1 {[%clk 0:01:45]} 12... Kf8 {[%clk
0:02:07.6]} 13. O-O {[%clk 0:01:42.3]} 13... Bxc3 {[%clk 0:02:07.5]} 14. bxc3
{[%clk 0:01:42.2]} 14... Kg7 {[%clk 0:02:07.4]} 15. Ne5 {[%clk 0:01:40.7]} 15...
b5 {[%clk 0:01:56.3]} 16. f4 {[%clk 0:01:37.8]} 16... Nxe5 {[%clk 0:01:35.1]}
17. fxe5 {[%clk 0:01:25.2]} 17... Ne4 {[%clk 0:01:35.2]} 18. Bxe4 {[%clk
0:01:19.2]} 18... dxe4 {[%clk 0:01:36.1]} 19. d5 {[%clk 0:01:00.1]} 19... Qb6
{[%clk 0:01:31.2]} 20. Qh5 {[%clk 0:00:57.1]} 20... Rf8 {[%clk 0:01:19.8]} 21.
e6 {[%clk 0:00:51]} 21... Bxe6 {[%clk 0:00:56.7]} 22. dxe6 {[%clk 0:00:24.9]}
22... Qxe6 {[%clk 0:00:57.6]} 23. h4 {[%clk 0:00:19]} 23... Qg6 {[%clk
0:00:48.3]} 24. Qxg6+ {[%clk 0:00:15.4]} 24... Kxg6 {[%clk 0:00:49.2]} 25. hxg5
{[%clk 0:00:14.8]} 25... hxg5 {[%clk 0:00:50.1]} 26. Rcd1 {[%clk 0:00:13.7]}
26... Rfd8 {[%clk 0:00:49]} 27. Be5 {[%clk 0:00:10.9]} 27... Rd3 {[%clk
0:00:44.5]} 28. Bd4 {[%clk 0:00:07.5]} 28... f5 {[%clk 0:00:42.8]} 29. Rb1
{[%clk 0:00:07.2]} 29... a6 {[%clk 0:00:42.6]} 30. a4 {[%clk 0:00:07.4]} 30...
Rb8 {[%clk 0:00:39.9]} 31. Kh2 {[%clk 0:00:07.1]} 31... b4 {[%clk 0:00:30.1]}
32. cxb4 {[%clk 0:00:06.8]} 32... f4 {[%clk 0:00:30.1]} 33. Rfe1 {[%clk
0:00:03]} 33... c3 {[%clk 0:00:26.5]} 34. b5 {[%clk 0:00:01.6]} 34... axb5
{[%clk 0:00:22.1]} 35. axb5 {[%clk 0:00:02.5]} 35... c2 {[%clk 0:00:15.2]} 36.
Rbc1 {[%clk 0:00:03.1]} 36... Rd2 {[%clk 0:00:15.7]} 37. Bc3 {[%clk 0:00:02.5]}
37... Rd3 {[%clk 0:00:11.7]} 38. exf4 {[%clk 0:00:03.4]} 38... gxf4 {[%clk
0:00:11]} 39. Be5 {[%clk 0:00:02.6]} 39... Rh8+ {[%clk 0:00:10.5]} 40. Kg1
{[%clk 0:00:02.6]} 40... f3 {[%clk 0:00:11.1]} 41. gxf3 {[%clk 0:00:02.5]} 41...
exf3 {[%clk 0:00:11.5]} 42. Kf2 {[%clk 0:00:02.7]} 42... Kf5 {[%clk 0:00:11.7]}
43. Bg3 {[%clk 0:00:03]} 43... Rhd8 {[%clk 0:00:11.1]} 0-1

[Event "Late-Titled-Tuesday-Blitz-March-26-2024"]
[Site "Chess.com"]
[Date "2024.03.26"]
[Round "7"]
[White "giomar27"]
[Black "bazar-wokzal"]
[Result "1-0"]
[WhiteElo "2454"]
[BlackElo "2557"]
[TimeControl "180+1"]
[EndTime "15:18:38 PDT"]
[Termination "giomar27 won by resignation"]

1. Nc3 {[%clk 0:03:00.9]} 1... d5 {[%clk 0:02:59.6]} 2. d4 {[%clk 0:03:00.8]}
2... Nf6 {[%clk 0:02:59.5]} 3. Bf4 {[%clk 0:03:00.2]} 3... e6 {[%clk 0:02:59.4]}
4. e3 {[%clk 0:03:00]} 4... Bb4 {[%clk 0:02:58.7]} 5. Ne2 {[%clk 0:02:57.1]}
5... O-O {[%clk 0:02:57.8]} 6. a3 {[%clk 0:02:55]} 6... Ba5 {[%clk 0:02:57.7]}
7. b4 {[%clk 0:02:54.7]} 7... Bb6 {[%clk 0:02:57.7]} 8. Ng3 {[%clk 0:02:52.9]}
8... a5 {[%clk 0:02:55.5]} 9. b5 {[%clk 0:02:51.9]} 9... a4 {[%clk 0:02:55.8]}
10. Bd3 {[%clk 0:02:51.6]} 10... Ba5 {[%clk 0:02:54.7]} 11. Ne2 {[%clk
0:02:39.1]} 11... Qe7 {[%clk 0:02:48.9]} 12. O-O {[%clk 0:02:39.1]} 12... Bxc3
{[%clk 0:02:42.7]} 13. Nxc3 {[%clk 0:02:39]} 13... c5 {[%clk 0:02:39.8]} 14.
bxc6 {[%clk 0:02:37.4]} 14... bxc6 {[%clk 0:02:38]} 15. f3 {[%clk 0:02:34.9]}
15... c5 {[%clk 0:02:37.6]} 16. Nb5 {[%clk 0:02:34.2]} 16... Rd8 {[%clk
0:02:31.2]} 17. dxc5 {[%clk 0:01:36.8]} 17... e5 {[%clk 0:02:25.1]} 18. Bg5
{[%clk 0:01:34.9]} 18... Qxc5 {[%clk 0:02:24.8]} 19. Bxf6 {[%clk 0:01:32.3]}
19... Qxe3+ {[%clk 0:02:22.1]} 20. Kh1 {[%clk 0:01:32.3]} 20... gxf6 {[%clk
0:02:22.6]} 21. Nc7 {[%clk 0:01:28.8]} 21... Ra5 {[%clk 0:02:18.7]} 22. Rb1
{[%clk 0:01:26.1]} 22... Nc6 {[%clk 0:02:15.6]} 23. Bb5 {[%clk 0:01:17.9]} 23...
Qb6 {[%clk 0:01:51.1]} 24. Nxd5 {[%clk 0:01:10.5]} 24... Rxb5 {[%clk 0:01:50.8]}
25. Nxb6 {[%clk 0:01:08.5]} 25... Rxd1 {[%clk 0:01:49.8]} 26. Rfxd1 {[%clk
0:01:08.6]} 26... Rxb1 {[%clk 0:01:41.1]} 27. Rxb1 {[%clk 0:01:09.5]} 27... Bf5
{[%clk 0:01:41.1]} 28. Nxa4 {[%clk 0:01:08.1]} 28... Bxc2 {[%clk 0:01:39.9]} 29.
Nc3 {[%clk 0:00:56.8]} 29... Bxb1 {[%clk 0:01:36.5]} 30. Nxb1 {[%clk 0:00:57.7]}
30... f5 {[%clk 0:01:34.5]} 31. Kg1 {[%clk 0:00:57.9]} 31... e4 {[%clk
0:01:32.3]} 32. Kf2 {[%clk 0:00:54.7]} 32... Kg7 {[%clk 0:01:32.1]} 33. Ke3
{[%clk 0:00:55.1]} 33... exf3 {[%clk 0:01:29.1]} 34. Kxf3 {[%clk 0:00:53.7]}
34... Kf6 {[%clk 0:01:29.5]} 35. Nc3 {[%clk 0:00:52.3]} 35... Ke5 {[%clk
0:01:29.1]} 36. Ne2 {[%clk 0:00:48.8]} 36... h6 {[%clk 0:01:19.4]} 37. a4 {[%clk
0:00:42.5]} 37... Na5 {[%clk 0:01:19.3]} 38. Nc1 {[%clk 0:00:41.2]} 38... Kd4
{[%clk 0:01:02.5]} 39. Kf4 {[%clk 0:00:40.9]} 39... Kc3 {[%clk 0:01:02.7]} 40.
Kxf5 {[%clk 0:00:38.5]} 40... Kd2 {[%clk 0:01:02.5]} 41. Na2 {[%clk 0:00:37.4]}
41... Ke3 {[%clk 0:01:02.6]} 42. Kg4 {[%clk 0:00:33.4]} 42... Kf2 {[%clk
0:01:01.5]} 43. Kh3 {[%clk 0:00:33.7]} 43... f5 {[%clk 0:00:57.9]} 44. Nc3
{[%clk 0:00:31.9]} 44... f4 {[%clk 0:00:56.4]} 45. Ne4+ {[%clk 0:00:31.1]} 45...
Ke3 {[%clk 0:00:54.3]} 46. Nf6 {[%clk 0:00:31.1]} 46... f3 {[%clk 0:00:49.1]}
47. Ng4+ {[%clk 0:00:31]} 47... Kf4 {[%clk 0:00:48]} 48. gxf3 {[%clk 0:00:30.9]}
48... h5 {[%clk 0:00:44.6]} 49. Nf6 {[%clk 0:00:29.1]} 49... Kxf3 {[%clk
0:00:41.4]} 50. Nxh5 {[%clk 0:00:29.3]} 50... Ke4 {[%clk 0:00:41.8]} 51. Kg4
{[%clk 0:00:28.8]} 51... Nc6 {[%clk 0:00:41.3]} 52. Ng3+ {[%clk 0:00:25.1]}
52... Kd4 {[%clk 0:00:40.7]} 53. Kf5 {[%clk 0:00:23.9]} 53... Ne7+ {[%clk
0:00:35.4]} 54. Kf6 {[%clk 0:00:21.9]} 54... Nd5+ {[%clk 0:00:35.5]} 55. Kf5
{[%clk 0:00:22.3]} 55... Ne7+ {[%clk 0:00:35.7]} 56. Kg5 {[%clk 0:00:22.5]}
56... Kc5 {[%clk 0:00:33.3]} 57. h4 {[%clk 0:00:22.4]} 57... Kb4 {[%clk
0:00:32.1]} 58. h5 {[%clk 0:00:22.8]} 58... Ng8 {[%clk 0:00:32.4]} 59. Nf5
{[%clk 0:00:21]} 59... Kxa4 {[%clk 0:00:32.4]} 60. Kg6 {[%clk 0:00:19.9]} 60...
Kb5 {[%clk 0:00:32.4]} 61. Kg7 {[%clk 0:00:20.2]} 1-0

[Event "Late-Titled-Tuesday-Blitz-March-26-2024"]
[Site "Chess.com"]
[Date "2024.03.26"]
[Round "7"]
[White "cthake"]
[Black "Janh4"]
[Result "0-1"]
[WhiteElo "1773"]
[BlackElo "2169"]
[TimeControl "180+1"]
[EndTime "15:18:38 PDT"]
[Termination "Janh4 won on time"]

1. e4 {[%clk 0:03:00.9]} 1... c6 {[%clk 0:02:59.4]} 2. d4 {[%clk 0:02:56.8]}
2... d5 {[%clk 0:03:00.3]} 3. exd5 {[%clk 0:02:53.7]} 3... cxd5 {[%clk
0:03:00.3]} 4. c4 {[%clk 0:02:54.1]} 4... Nf6 {[%clk 0:03:00.3]} 5. Nc3 {[%clk
0:02:54.2]} 5... Nc6 {[%clk 0:02:59.8]} 6. Nf3 {[%clk 0:02:53.1]} 6... a6 {[%clk
0:02:59.6]} 7. Bg5 {[%clk 0:02:52.3]} 7... Ne4 {[%clk 0:02:42.5]} 8. Be3 {[%clk
0:02:45]} 8... Nxc3 {[%clk 0:02:40.3]} 9. bxc3 {[%clk 0:02:44.7]} 9... Bg4
{[%clk 0:02:40.4]} 10. Be2 {[%clk 0:02:25]} 10... e6 {[%clk 0:02:39.3]} 11. c5
{[%clk 0:02:19.1]} 11... Be7 {[%clk 0:02:32.8]} 12. O-O {[%clk 0:02:18.6]} 12...
O-O {[%clk 0:02:32.2]} 13. Rb1 {[%clk 0:02:14.4]} 13... Ra7 {[%clk 0:02:29.9]}
14. h3 {[%clk 0:02:13.8]} 14... Bh5 {[%clk 0:02:28.8]} 15. g4 {[%clk 0:02:00.1]}
15... Bg6 {[%clk 0:02:28.2]} 16. Bd3 {[%clk 0:02:00.3]} 16... Qc7 {[%clk
0:02:12.8]} 17. Qd2 {[%clk 0:01:59.1]} 17... Bf6 {[%clk 0:01:53.9]} 18. Bf4
{[%clk 0:01:57]} 18... Qa5 {[%clk 0:01:42]} 19. Bxg6 {[%clk 0:01:49.1]} 19...
fxg6 {[%clk 0:01:28.4]} 20. Bd6 {[%clk 0:01:48.8]} 20... Rf7 {[%clk 0:01:17.9]}
21. Kg2 {[%clk 0:01:43.2]} 21... h6 {[%clk 0:01:15.5]} 22. Ne5 {[%clk
0:01:41.5]} 22... Bxe5 {[%clk 0:01:04]} 23. dxe5 {[%clk 0:01:40.6]} 23... Qa4
{[%clk 0:00:59.6]} 24. Rbe1 {[%clk 0:01:17.8]} 24... Ra8 {[%clk 0:00:51.9]} 25.
Qd3 {[%clk 0:01:16.3]} 25... Kh7 {[%clk 0:00:40.7]} 26. Re2 {[%clk 0:01:13.7]}
26... Qf4 {[%clk 0:00:33.3]} 27. Qg3 {[%clk 0:01:05.8]} 27... Na5 {[%clk
0:00:29.1]} 28. Qxf4 {[%clk 0:00:59.8]} 28... Rxf4 {[%clk 0:00:28.8]} 29. Rb2
{[%clk 0:00:56.4]} 29... Rc4 {[%clk 0:00:21.3]} 30. Rc1 {[%clk 0:00:52.1]} 30...
Rc8 {[%clk 0:00:19.5]} 31. Kg3 {[%clk 0:00:46.1]} 31... g5 {[%clk 0:00:17.1]}
32. f3 {[%clk 0:00:45.9]} 32... Kg6 {[%clk 0:00:16.7]} 33. Be7 {[%clk
0:00:26.8]} 33... Rc7 {[%clk 0:00:13.5]} 34. Bd6 {[%clk 0:00:26.7]} 34... Rf7
{[%clk 0:00:13.3]} 35. Rf2 {[%clk 0:00:21.3]} 35... Rcf4 {[%clk 0:00:12]} 36.
Rd1 {[%clk 0:00:17.1]} 36... Nc4 {[%clk 0:00:07.9]} 37. Rd4 {[%clk 0:00:16.7]}
37... Ne3 {[%clk 0:00:06.6]} 38. Rxf4 {[%clk 0:00:11.6]} 38... gxf4+ {[%clk
0:00:06.3]} 39. Kh2 {[%clk 0:00:11.9]} 39... Kg5 {[%clk 0:00:04.3]} 40. a4
{[%clk 0:00:07.5]} 40... h5 {[%clk 0:00:03]} 41. a5 {[%clk 0:00:02]} 41... hxg4
{[%clk 0:00:03.2]} 42. hxg4 {[%clk 0:00:01.3]} 42... g6 {[%clk 0:00:04.1]} 43.
Kg1 {[%clk 0:00:01.3]} 43... Rh7 {[%clk 0:00:03.9]} 0-1